[Event "Early-Titled-Tuesday-Blitz-May-28-2024"]
[Site "Chess.com"]
[Date "2024.05.28"]
[Round "9"]
[White "Chernov_Mikhail"]
[Black "FrenchPlayer2203"]
[Result "1/2-1/2"]
[WhiteElo "2281"]
[BlackElo "2101"]
[TimeControl "180+1"]
[EndTime "9:48:01 PDT"]
[Termination "Game drawn - insufficient material"]

1. e4 {[%clk 0:02:55.6]} 1... e6 {[%clk 0:02:59.5]} 2. d3 {[%clk 0:02:53.5]}
2... d5 {[%clk 0:02:59.7]} 3. Nd2 {[%clk 0:02:54.4]} 3... c5 {[%clk 0:02:58.6]}
4. Ngf3 {[%clk 0:02:54.2]} 4... Nc6 {[%clk 0:02:58]} 5. g3 {[%clk 0:02:53.8]}
5... Bd6 {[%clk 0:02:58.5]} 6. Bg2 {[%clk 0:02:53.4]} 6... Nge7 {[%clk
0:02:58.9]} 7. O-O {[%clk 0:02:53.9]} 7... O-O {[%clk 0:02:59]} 8. Re1 {[%clk
0:02:53.8]} 8... Qc7 {[%clk 0:02:54.3]} 9. c3 {[%clk 0:02:50.6]} 9... d4 {[%clk
0:02:39.4]} 10. Qe2 {[%clk 0:02:45]} 10... e5 {[%clk 0:02:32.6]} 11. Nc4 {[%clk
0:02:42.9]} 11... f6 {[%clk 0:02:30.8]} 12. a4 {[%clk 0:02:39]} 12... Be6 {[%clk
0:02:25.5]} 13. Nfd2 {[%clk 0:02:24.2]} 13... b6 {[%clk 0:02:12.3]} 14. Rf1
{[%clk 0:02:19]} 14... a6 {[%clk 0:02:01.1]} 15. Nxd6 {[%clk 0:02:10.7]} 15...
Qxd6 {[%clk 0:02:00.4]} 16. c4 {[%clk 0:02:03.3]} 16... Rab8 {[%clk 0:01:50.9]}
17. f4 {[%clk 0:01:56.1]} 17... b5 {[%clk 0:01:46]} 18. b3 {[%clk 0:01:52.6]}
18... Nb4 {[%clk 0:01:29.6]} 19. axb5 {[%clk 0:01:34.6]} 19... axb5 {[%clk
0:01:27.7]} 20. Nf3 {[%clk 0:01:34]} 20... bxc4 {[%clk 0:01:15.1]} 21. bxc4
{[%clk 0:01:34.9]} 21... Kh8 {[%clk 0:01:08.6]} 22. fxe5 {[%clk 0:00:52.4]}
22... fxe5 {[%clk 0:01:07.6]} 23. Nxe5 {[%clk 0:00:49.7]} 23... Qxe5 {[%clk
0:00:35.3]} 24. Bf4 {[%clk 0:00:48.9]} 24... Rxf4 {[%clk 0:00:35.3]} 25. gxf4
{[%clk 0:00:45.2]} 25... Qc7 {[%clk 0:00:35.1]} 26. f5 {[%clk 0:00:41.6]} 26...
Bg8 {[%clk 0:00:28.9]} 27. f6 {[%clk 0:00:40.2]} 27... Nec6 {[%clk 0:00:25.4]}
28. Rf3 {[%clk 0:00:18.1]} 28... Ne5 {[%clk 0:00:24]} 29. fxg7+ {[%clk
0:00:17.9]} 29... Qxg7 {[%clk 0:00:23.4]} 30. Rg3 {[%clk 0:00:18.5]} 30... Qe7
{[%clk 0:00:20.6]} 31. Rf1 {[%clk 0:00:18.4]} 31... Rf8 {[%clk 0:00:18]} 32.
Rxf8 {[%clk 0:00:17.5]} 32... Qxf8 {[%clk 0:00:18.2]} 33. Bh3 {[%clk 0:00:16.6]}
33... h6 {[%clk 0:00:17.2]} 34. Bf5 {[%clk 0:00:16.7]} 34... Bf7 {[%clk
0:00:15.5]} 35. Qf1 {[%clk 0:00:09.5]} 35... Nbxd3 {[%clk 0:00:14.5]} 36. Rxd3
{[%clk 0:00:09.3]} 36... Nxd3 {[%clk 0:00:14.2]} 37. Qxd3 {[%clk 0:00:10.2]}
37... Qg7+ {[%clk 0:00:14.2]} 38. Kf2 {[%clk 0:00:09.7]} 38... Qg5 {[%clk
0:00:13.7]} 39. h3 {[%clk 0:00:08.6]} 39... Qf4+ {[%clk 0:00:13.3]} 40. Qf3
{[%clk 0:00:07.6]} 40... Qxf3+ {[%clk 0:00:13.5]} 41. Kxf3 {[%clk 0:00:08.5]}
41... Bxc4 {[%clk 0:00:13.9]} 42. Kf4 {[%clk 0:00:05.2]} 42... Kg7 {[%clk
0:00:13.1]} 43. Bg4 {[%clk 0:00:05.3]} 43... Bf7 {[%clk 0:00:12.6]} 44. e5
{[%clk 0:00:05.6]} 44... c4 {[%clk 0:00:11.1]} 45. Ke4 {[%clk 0:00:05.9]} 45...
d3 {[%clk 0:00:11.1]} 46. e6 {[%clk 0:00:02.6]} 46... Be8 {[%clk 0:00:06.8]} 47.
Kd4 {[%clk 0:00:02.1]} 47... Kf6 {[%clk 0:00:03.8]} 48. Kxc4 {[%clk 0:00:01.9]}
48... d2 {[%clk 0:00:04.1]} 49. Kd3 {[%clk 0:00:01.3]} 49... Bb5+ {[%clk
0:00:03.3]} 50. Kxd2 {[%clk 0:00:01.4]} 50... Bc4 {[%clk 0:00:03.5]} 51. Ke3
{[%clk 0:00:01.9]} 51... Bxe6 {[%clk 0:00:03.6]} 52. Kf4 {[%clk 0:00:02.5]}
52... Bxg4 {[%clk 0:00:02.8]} 53. hxg4 {[%clk 0:00:03.1]} 53... Kg6 {[%clk
0:00:03.1]} 54. Kg3 {[%clk 0:00:03.3]} 54... Kg5 {[%clk 0:00:02.9]} 55. Kh3
{[%clk 0:00:04.2]} 55... h5 {[%clk 0:00:03.2]} 56. gxh5 {[%clk 0:00:03.2]} 56...
Kxh5 {[%clk 0:00:03.5]} 1/2-1/2

[Event "Early-Titled-Tuesday-Blitz-May-28-2024"]
[Site "Chess.com"]
[Date "2024.05.28"]
[Round "9"]
[White "Shuvalov"]
[Black "patzer-reloaded"]
[Result "0-1"]
[WhiteElo "2560"]
[BlackElo "2488"]
[TimeControl "180+1"]
[EndTime "9:48:05 PDT"]
[Termination "patzer-reloaded won by resignation"]

1. d4 {[%clk 0:03:00.9]} 1... Nf6 {[%clk 0:02:43.5]} 2. c4 {[%clk 0:03:00.2]}
2... e6 {[%clk 0:02:43.1]} 3. Nf3 {[%clk 0:02:59.6]} 3... d5 {[%clk 0:02:42.7]}
4. Nc3 {[%clk 0:02:58.2]} 4... Bb4 {[%clk 0:02:41.7]} 5. cxd5 {[%clk 0:02:57]}
5... exd5 {[%clk 0:02:41.3]} 6. Bg5 {[%clk 0:02:57.2]} 6... h6 {[%clk
0:02:39.6]} 7. Bh4 {[%clk 0:02:56.9]} 7... O-O {[%clk 0:02:36.4]} 8. e3 {[%clk
0:02:56.2]} 8... g5 {[%clk 0:02:35.6]} 9. Bg3 {[%clk 0:02:55.6]} 9... Ne4 {[%clk
0:02:35.6]} 10. Qc2 {[%clk 0:02:53.1]} 10... h5 {[%clk 0:02:21.2]} 11. h4 {[%clk
0:02:34.9]} 11... g4 {[%clk 0:02:16]} 12. Ng5 {[%clk 0:02:22.7]} 12... f5 {[%clk
0:01:34.3]} 13. Bf4 {[%clk 0:02:15.8]} 13... c6 {[%clk 0:01:10]} 14. f3 {[%clk
0:02:10.8]} 14... Nxg5 {[%clk 0:01:01.6]} 15. hxg5 {[%clk 0:02:03.4]} 15... Qe8
{[%clk 0:00:51]} 16. Bd3 {[%clk 0:01:56.4]} 16... Be6 {[%clk 0:00:48.6]} 17. Kf2
{[%clk 0:01:48.5]} 17... Nd7 {[%clk 0:00:47.9]} 18. Rh4 {[%clk 0:01:45.9]} 18...
c5 {[%clk 0:00:17]} 19. a3 {[%clk 0:01:38.3]} 19... Bxc3 {[%clk 0:00:12]} 20.
bxc3 {[%clk 0:01:37.9]} 20... c4 {[%clk 0:00:09.1]} 21. Be2 {[%clk 0:01:36.1]}
21... Kg7 {[%clk 0:00:04.1]} 22. Rah1 {[%clk 0:01:33.6]} 22... Rh8 {[%clk
0:00:03]} 23. e4 {[%clk 0:01:06.7]} 23... fxe4 {[%clk 0:00:01.6]} 24. fxe4
{[%clk 0:01:07.6]} 24... Qf7 {[%clk 0:00:01.1]} 25. Kg3 {[%clk 0:01:06.2]} 25...
dxe4 {[%clk 0:00:01]} 26. Qxe4 {[%clk 0:01:05.4]} 26... Bf5 {[%clk 0:00:01]} 27.
Be5+ {[%clk 0:01:03.6]} 27... Nxe5 {[%clk 0:00:00.9]} 28. Qxe5+ {[%clk
0:01:03.7]} 28... Kg6 {[%clk 0:00:01.8]} 29. Qd6+ {[%clk 0:00:59.9]} 29... Qe6
{[%clk 0:00:01.4]} 30. Qxe6+ {[%clk 0:00:56.1]} 30... Bxe6 {[%clk 0:00:02.3]}
31. Bd1 {[%clk 0:00:53.2]} 31... Kxg5 {[%clk 0:00:02.4]} 32. Bc2 {[%clk
0:00:52.5]} 32... Bd5 {[%clk 0:00:01.9]} 33. Re1 {[%clk 0:00:48.1]} 33... Rae8
{[%clk 0:00:02.2]} 34. Rhh1 {[%clk 0:00:24.8]} 34... h4+ {[%clk 0:00:01.5]} 35.
Rxh4 {[%clk 0:00:23.9]} 35... Rxe1 {[%clk 0:00:01]} 36. Rxh8 {[%clk 0:00:23.7]}
36... Re3+ {[%clk 0:00:01.9]} 37. Kf2 {[%clk 0:00:23.5]} 37... Rxc3 {[%clk
0:00:02.8]} 38. Ba4 {[%clk 0:00:18.1]} 38... Rd3 {[%clk 0:00:02.2]} 39. Rd8
{[%clk 0:00:16.8]} 39... Rxd4 {[%clk 0:00:01.8]} 40. Ke3 {[%clk 0:00:17.2]}
40... Rd3+ {[%clk 0:00:01.8]} 41. Ke2 {[%clk 0:00:17.5]} 41... Be4 {[%clk
0:00:01.9]} 42. Re8 {[%clk 0:00:17.1]} 42... Kf4 {[%clk 0:00:02]} 43. g3+ {[%clk
0:00:16.3]} 43... Rxg3 {[%clk 0:00:00.8]} 44. Bb5 {[%clk 0:00:15.1]} 44... Bf5
{[%clk 0:00:01.7]} 45. Rf8 {[%clk 0:00:14.9]} 45... Rg2+ {[%clk 0:00:02.1]} 46.
Kf1 {[%clk 0:00:15.1]} 46... Rg3 {[%clk 0:00:02.3]} 47. Bd7 {[%clk 0:00:15.1]}
47... Rf3+ {[%clk 0:00:03.2]} 48. Ke2 {[%clk 0:00:15.3]} 48... Kg3 {[%clk
0:00:04.1]} 49. Rxf5 {[%clk 0:00:14.7]} 49... Rxa3 {[%clk 0:00:04.1]} 50. Rg5
{[%clk 0:00:14.1]} 50... Ra2+ {[%clk 0:00:04.1]} 51. Ke3 {[%clk 0:00:14.2]}
51... Ra3+ {[%clk 0:00:04.4]} 52. Ke4 {[%clk 0:00:14.4]} 52... Kf2 {[%clk
0:00:03.6]} 53. Rxg4 {[%clk 0:00:14.8]} 53... c3 {[%clk 0:00:04.1]} 54. Kf5
{[%clk 0:00:12.6]} 54... Ke2 {[%clk 0:00:05]} 55. Rc4 {[%clk 0:00:13]} 55... Kd2
{[%clk 0:00:05.1]} 56. Rc7 {[%clk 0:00:12.5]} 56... c2 {[%clk 0:00:05.2]} 57.
Rxb7 {[%clk 0:00:08.6]} 57... c1=Q {[%clk 0:00:06.1]} 58. Kf6 {[%clk 0:00:06.7]}
58... Qc3+ {[%clk 0:00:06.2]} 59. Ke7 {[%clk 0:00:06.2]} 59... Rb3 {[%clk
0:00:07.1]} 60. Rxa7 {[%clk 0:00:04.4]} 60... Qc5+ {[%clk 0:00:07.1]} 61. Ke8
{[%clk 0:00:03.7]} 61... Qxa7 {[%clk 0:00:08]} 0-1

[Event "Early-Titled-Tuesday-Blitz-May-28-2024"]
[Site "Chess.com"]
[Date "2024.05.28"]
[Round "9"]
[White "JJDAREK"]
[Black "MikeSailer"]
[Result "0-1"]
[WhiteElo "2349"]
[BlackElo "2101"]
[TimeControl "180+1"]
[EndTime "9:48:06 PDT"]
[Termination "MikeSailer won by resignation"]

1. d4 {[%clk 0:03:00.9]} 1... d5 {[%clk 0:02:59.4]} 2. Nf3 {[%clk 0:02:59.6]}
2... Nf6 {[%clk 0:02:58.9]} 3. c4 {[%clk 0:02:57.9]} 3... c6 {[%clk 0:02:58.2]}
4. Nbd2 {[%clk 0:02:53.6]} 4... g6 {[%clk 0:02:58.5]} 5. e3 {[%clk 0:02:46.7]}
5... Bg7 {[%clk 0:02:57.1]} 6. Be2 {[%clk 0:02:45.3]} 6... O-O {[%clk
0:02:54.1]} 7. O-O {[%clk 0:02:45.7]} 7... b6 {[%clk 0:02:51.9]} 8. b4 {[%clk
0:02:44]} 8... a5 {[%clk 0:02:51]} 9. b5 {[%clk 0:02:38]} 9... c5 {[%clk
0:02:43.8]} 10. Bb2 {[%clk 0:02:23.3]} 10... Bb7 {[%clk 0:02:35.1]} 11. a4
{[%clk 0:02:18.7]} 11... e6 {[%clk 0:02:20.4]} 12. Rc1 {[%clk 0:02:17.9]} 12...
Nbd7 {[%clk 0:02:20.4]} 13. Ne5 {[%clk 0:02:00.9]} 13... Nxe5 {[%clk 0:02:14.9]}
14. dxe5 {[%clk 0:02:00.4]} 14... Nd7 {[%clk 0:02:14.2]} 15. f4 {[%clk
0:01:50.3]} 15... f6 {[%clk 0:02:12.6]} 16. exf6 {[%clk 0:01:49.3]} 16... Nxf6
{[%clk 0:02:12.6]} 17. Nf3 {[%clk 0:01:42.7]} 17... Qc7 {[%clk 0:02:04.7]} 18.
Be5 {[%clk 0:01:37]} 18... Qd7 {[%clk 0:01:58.2]} 19. Qb3 {[%clk 0:01:09.4]}
19... Ne4 {[%clk 0:01:41.4]} 20. Rfd1 {[%clk 0:01:01.3]} 20... Rad8 {[%clk
0:01:32.5]} 21. Bxg7 {[%clk 0:00:58.2]} 21... Qxg7 {[%clk 0:01:32.3]} 22. Ne5
{[%clk 0:00:58.7]} 22... g5 {[%clk 0:01:22.1]} 23. Bg4 {[%clk 0:00:33.9]} 23...
Rde8 {[%clk 0:01:21.1]} 24. cxd5 {[%clk 0:00:30.2]} 24... Bxd5 {[%clk
0:01:14.2]} 25. Rxd5 {[%clk 0:00:29.9]} 25... exd5 {[%clk 0:01:14]} 26. Qxd5+
{[%clk 0:00:30.5]} 26... Kh8 {[%clk 0:01:12]} 27. Bd7 {[%clk 0:00:12.9]} 27...
Nf6 {[%clk 0:01:06.5]} 28. Qd6 {[%clk 0:00:11.1]} 28... Nxd7 {[%clk 0:00:57]}
29. Qxd7 {[%clk 0:00:11.9]} 29... Rxe5 {[%clk 0:00:38.2]} 30. Qxg7+ {[%clk
0:00:10.7]} 30... Kxg7 {[%clk 0:00:38.5]} 31. fxe5 {[%clk 0:00:11.6]} 31... Re8
{[%clk 0:00:38.6]} 32. Rd1 {[%clk 0:00:11]} 32... Re6 {[%clk 0:00:33.6]} 33. Kf2
{[%clk 0:00:10.6]} 33... Kg6 {[%clk 0:00:32.1]} 34. Rd7 {[%clk 0:00:08.9]} 34...
Kf5 {[%clk 0:00:19.8]} 35. Kf3 {[%clk 0:00:09.2]} 35... h5 {[%clk 0:00:18.2]}
36. h3 {[%clk 0:00:08.9]} 36... Kxe5 {[%clk 0:00:18.1]} 37. Rh7 {[%clk
0:00:07.1]} 37... Kd5 {[%clk 0:00:16.5]} 38. Rxh5 {[%clk 0:00:06.9]} 38... Kc4
{[%clk 0:00:16.8]} 39. Rxg5 {[%clk 0:00:07.2]} 39... Kb3 {[%clk 0:00:15.1]} 40.
h4 {[%clk 0:00:07.7]} 40... c4 {[%clk 0:00:15.7]} 41. Ke2 {[%clk 0:00:05.5]}
41... c3 {[%clk 0:00:15.4]} 42. Rf5 {[%clk 0:00:03.7]} 42... Rd6 {[%clk
0:00:09.4]} 43. Rf1 {[%clk 0:00:03.7]} 43... Kxa4 {[%clk 0:00:09.6]} 44. Rc1
{[%clk 0:00:03.4]} 44... Kb3 {[%clk 0:00:08.8]} 45. h5 {[%clk 0:00:03.1]} 45...
Kb2 {[%clk 0:00:08.2]} 46. Rxc3 {[%clk 0:00:01.4]} 46... Kxc3 {[%clk 0:00:08.2]}
47. g4 {[%clk 0:00:02.3]} 47... a4 {[%clk 0:00:08.4]} 48. g5 {[%clk 0:00:02.7]}
48... Rd5 {[%clk 0:00:08.2]} 49. g6 {[%clk 0:00:03.3]} 49... Rxh5 {[%clk
0:00:08.5]} 50. g7 {[%clk 0:00:03.7]} 50... Rg5 {[%clk 0:00:08]} 51. e4 {[%clk
0:00:03.7]} 51... Rxg7 {[%clk 0:00:08.4]} 52. e5 {[%clk 0:00:04.6]} 52... Re7
{[%clk 0:00:09]} 53. e6 {[%clk 0:00:05.5]} 53... Rxe6+ {[%clk 0:00:09.7]} 54.
Kf3 {[%clk 0:00:05.5]} 54... Re5 {[%clk 0:00:10.3]} 55. Kf4 {[%clk 0:00:06.4]}
55... Rxb5 {[%clk 0:00:11.1]} 56. Ke4 {[%clk 0:00:06.6]} 56... Rc5 {[%clk
0:00:12]} 57. Kf4 {[%clk 0:00:06.7]} 57... a3 {[%clk 0:00:12.9]} 58. Ke4 {[%clk
0:00:07.6]} 58... a2 {[%clk 0:00:13.8]} 59. Ke3 {[%clk 0:00:08.4]} 59... a1=Q
{[%clk 0:00:14.7]} 60. Ke2 {[%clk 0:00:09.2]} 60... Qb2+ {[%clk 0:00:14.3]} 61.
Ke3 {[%clk 0:00:10.1]} 61... Qd2+ {[%clk 0:00:14.8]} 62. Ke4 {[%clk 0:00:10.9]}
62... Qd5+ {[%clk 0:00:14.6]} 63. Ke3 {[%clk 0:00:10.9]} 63... Rc6 {[%clk
0:00:14.1]} 0-1

[Event "Early-Titled-Tuesday-Blitz-May-28-2024"]
[Site "Chess.com"]
[Date "2024.05.28"]
[Round "9"]
[White "Massakru"]
[Black "Fraler15"]
[Result "0-1"]
[WhiteElo "2362"]
[BlackElo "2221"]
[TimeControl "180+1"]
[EndTime "9:48:08 PDT"]
[Termination "Fraler15 won by checkmate"]

1. e4 {[%clk 0:03:00.9]} 1... c5 {[%clk 0:02:58.8]} 2. Nf3 {[%clk 0:03:00.5]}
2... e6 {[%clk 0:02:58.9]} 3. c3 {[%clk 0:03:00.7]} 3... d5 {[%clk 0:02:57.8]}
4. exd5 {[%clk 0:03:01.6]} 4... Qxd5 {[%clk 0:02:57.7]} 5. Na3 {[%clk
0:03:01.4]} 5... Nf6 {[%clk 0:02:56.7]} 6. d4 {[%clk 0:02:56.2]} 6... Nc6 {[%clk
0:02:52.1]} 7. Be3 {[%clk 0:02:55]} 7... cxd4 {[%clk 0:02:51]} 8. Nb5 {[%clk
0:02:55.2]} 8... Qd8 {[%clk 0:02:45.1]} 9. Nbxd4 {[%clk 0:02:55]} 9... Nxd4
{[%clk 0:02:43.8]} 10. Nxd4 {[%clk 0:02:54.5]} 10... a6 {[%clk 0:02:42.2]} 11.
Qa4+ {[%clk 0:02:51.2]} 11... Bd7 {[%clk 0:02:41.4]} 12. Qb3 {[%clk 0:02:51.7]}
12... Qc7 {[%clk 0:02:36.7]} 13. Be2 {[%clk 0:02:47.6]} 13... Bd6 {[%clk
0:02:28.7]} 14. Bf3 {[%clk 0:02:44.8]} 14... Rb8 {[%clk 0:02:22.7]} 15. h3
{[%clk 0:02:32.1]} 15... O-O {[%clk 0:02:20.2]} 16. O-O {[%clk 0:02:28.3]} 16...
e5 {[%clk 0:02:13.2]} 17. Nc2 {[%clk 0:02:22.5]} 17... e4 {[%clk 0:02:13]} 18.
Be2 {[%clk 0:02:19.1]} 18... Be6 {[%clk 0:02:12.2]} 19. Qa4 {[%clk 0:02:13.1]}
19... Rfc8 {[%clk 0:01:51.3]} 20. Nd4 {[%clk 0:02:12.5]} 20... Bd7 {[%clk
0:01:49.6]} 21. Qd1 {[%clk 0:02:10.6]} 21... Nd5 {[%clk 0:01:44.2]} 22. Bg4
{[%clk 0:02:00.2]} 22... Nxe3 {[%clk 0:01:42.5]} 23. fxe3 {[%clk 0:02:00.6]}
23... Bxg4 {[%clk 0:01:36.2]} 24. Qxg4 {[%clk 0:02:00.2]} 24... Bc5 {[%clk
0:00:54.6]} 25. Nf5 {[%clk 0:01:57.2]} 25... f6 {[%clk 0:00:47.2]} 26. Qxe4
{[%clk 0:01:46.3]} 26... Re8 {[%clk 0:00:45.6]} 27. Qd5+ {[%clk 0:01:41]} 27...
Kh8 {[%clk 0:00:44.3]} 28. Kh1 {[%clk 0:01:36.5]} 28... Re5 {[%clk 0:00:39.2]}
29. Qf3 {[%clk 0:01:30.7]} 29... Rbe8 {[%clk 0:00:38]} 30. Rae1 {[%clk
0:01:26.8]} 30... a5 {[%clk 0:00:26.4]} 31. e4 {[%clk 0:01:21.3]} 31... a4
{[%clk 0:00:26.1]} 32. b3 {[%clk 0:01:18.6]} 32... axb3 {[%clk 0:00:21.8]} 33.
axb3 {[%clk 0:01:19.5]} 33... Bf8 {[%clk 0:00:18.2]} 34. c4 {[%clk 0:01:07.5]}
34... Qc6 {[%clk 0:00:17.7]} 35. Ng3 {[%clk 0:01:01.3]} 35... Bd6 {[%clk
0:00:16]} 36. Rd1 {[%clk 0:00:56.4]} 36... Bf8 {[%clk 0:00:15]} 37. Rd5 {[%clk
0:00:54.6]} 37... Qb6 {[%clk 0:00:12.9]} 38. Rxe5 {[%clk 0:00:49.9]} 38... Rxe5
{[%clk 0:00:12.4]} 39. Rd1 {[%clk 0:00:47.4]} 39... Qc7 {[%clk 0:00:10.9]} 40.
Rd5 {[%clk 0:00:45.1]} 40... Qe7 {[%clk 0:00:10.2]} 41. Nf5 {[%clk 0:00:41.7]}
41... Qe6 {[%clk 0:00:10.1]} 42. Rd8 {[%clk 0:00:39.8]} 42... Kg8 {[%clk
0:00:09.1]} 43. Qg4 {[%clk 0:00:29.7]} 43... Kf7 {[%clk 0:00:08.6]} 44. Qh5+
{[%clk 0:00:22.6]} 44... Kg8 {[%clk 0:00:07.5]} 45. Qg4 {[%clk 0:00:12]} 45...
Kf7 {[%clk 0:00:06.9]} 46. Rd6 {[%clk 0:00:11.8]} 46... Bxd6 {[%clk 0:00:05.4]}
47. Qxg7+ {[%clk 0:00:10.9]} 47... Ke8 {[%clk 0:00:05.6]} 48. Qxb7 {[%clk
0:00:07.7]} 48... Rxf5 {[%clk 0:00:04.7]} 49. Qc6+ {[%clk 0:00:04.6]} 49... Ke7
{[%clk 0:00:03.4]} 50. Qb7+ {[%clk 0:00:04.2]} 50... Kf8 {[%clk 0:00:03.2]} 51.
Qa8+ {[%clk 0:00:03.4]} 51... Kg7 {[%clk 0:00:03.2]} 52. Qb7+ {[%clk 0:00:03.1]}
52... Kh6 {[%clk 0:00:03.3]} 53. g4 {[%clk 0:00:03.2]} 53... Re5 {[%clk
0:00:02.7]} 54. Qa8 {[%clk 0:00:01]} 54... Rxe4 {[%clk 0:00:01]} 55. Qd8 {[%clk
0:00:01.2]} 55... Qe7 {[%clk 0:00:01]} 56. Kg2 {[%clk 0:00:02.1]} 56... Re2+
{[%clk 0:00:01]} 57. Kf1 {[%clk 0:00:02.3]} 57... Qe5 {[%clk 0:00:01]} 58. Qf8+
{[%clk 0:00:01]} 58... Kg5 {[%clk 0:00:01.4]} 59. Qg8+ {[%clk 0:00:01]} 59...
Kh4 {[%clk 0:00:02.1]} 60. Qxh7+ {[%clk 0:00:01]} 60... Kg3 {[%clk 0:00:02.7]}
61. Qf5 {[%clk 0:00:01.2]} 61... Re1# {[%clk 0:00:03.1]} 0-1

[Event "Early-Titled-Tuesday-Blitz-May-28-2024"]
[Site "Chess.com"]
[Date "2024.05.28"]
[Round "9"]
[White "Chernov_Alexander_A"]
[Black "FLYD"]
[Result "0-1"]
[WhiteElo "2274"]
[BlackElo "2079"]
[TimeControl "180+1"]
[EndTime "9:48:09 PDT"]
[Termination "FLYD won on time"]

1. d4 {[%clk 0:03:00.9]} 1... d5 {[%clk 0:03:00.2]} 2. c4 {[%clk 0:02:59.8]}
2... e6 {[%clk 0:03:00.3]} 3. Nf3 {[%clk 0:02:59.1]} 3... Nf6 {[%clk 0:03:00]}
4. g3 {[%clk 0:02:56.5]} 4... Be7 {[%clk 0:02:59.4]} 5. Bg2 {[%clk 0:02:56.4]}
5... O-O {[%clk 0:03:00.1]} 6. O-O {[%clk 0:02:56.3]} 6... dxc4 {[%clk
0:03:00.6]} 7. Qc2 {[%clk 0:02:51.4]} 7... a6 {[%clk 0:02:59.9]} 8. Qxc4 {[%clk
0:02:50.1]} 8... b5 {[%clk 0:02:59.9]} 9. Qc2 {[%clk 0:02:49.7]} 9... Bb7 {[%clk
0:03:00.2]} 10. Bd2 {[%clk 0:02:49.1]} 10... Nbd7 {[%clk 0:02:59]} 11. Ba5
{[%clk 0:02:46.7]} 11... Rc8 {[%clk 0:02:54.4]} 12. Rc1 {[%clk 0:02:43.3]} 12...
Qe8 {[%clk 0:02:50.1]} 13. Nbd2 {[%clk 0:02:25.6]} 13... c5 {[%clk 0:02:36.6]}
14. dxc5 {[%clk 0:02:19.5]} 14... Nxc5 {[%clk 0:02:11.8]} 15. Qd1 {[%clk
0:02:12.1]} 15... Qd7 {[%clk 0:02:02.3]} 16. Ne5 {[%clk 0:01:56.1]} 16... Qd6
{[%clk 0:01:49.9]} 17. Ndf3 {[%clk 0:01:51.2]} 17... Qxd1+ {[%clk 0:01:45.3]}
18. Rxd1 {[%clk 0:01:47.3]} 18... Bd8 {[%clk 0:01:43.6]} 19. Bb4 {[%clk
0:01:43.4]} 19... a5 {[%clk 0:01:43.8]} 20. Be1 {[%clk 0:01:36.8]} 20... Nd5
{[%clk 0:01:39.3]} 21. Rac1 {[%clk 0:01:31.2]} 21... a4 {[%clk 0:01:34.1]} 22.
Nd4 {[%clk 0:01:26.1]} 22... Bf6 {[%clk 0:01:26.7]} 23. Rxc5 {[%clk 0:00:59.8]}
23... Rxc5 {[%clk 0:01:18.4]} 24. Nd7 {[%clk 0:00:59.4]} 24... Rc4 {[%clk
0:01:18.8]} 25. Nxb5 {[%clk 0:00:48.1]} 25... Rd8 {[%clk 0:01:12.6]} 26. Nxf6+
{[%clk 0:00:44.1]} 26... gxf6 {[%clk 0:01:12.7]} 27. e4 {[%clk 0:00:43.7]} 27...
Rcc8 {[%clk 0:00:54.1]} 28. exd5 {[%clk 0:00:42.9]} 28... Bxd5 {[%clk 0:00:55]}
29. Nc3 {[%clk 0:00:42.4]} 29... Bxg2 {[%clk 0:00:54.4]} 30. Kxg2 {[%clk
0:00:42.2]} 30... Rxd1 {[%clk 0:00:54.2]} 31. Nxd1 {[%clk 0:00:41.7]} 31... Rc1
{[%clk 0:00:55.1]} 32. Nc3 {[%clk 0:00:40.3]} 32... Rxe1 {[%clk 0:00:55.2]} 33.
Nxa4 {[%clk 0:00:41]} 33... Kf8 {[%clk 0:00:53.6]} 34. Kf3 {[%clk 0:00:39]}
34... Ke7 {[%clk 0:00:53.6]} 35. Nc3 {[%clk 0:00:37.7]} 35... Kd6 {[%clk
0:00:52.1]} 36. a4 {[%clk 0:00:37.5]} 36... Kc5 {[%clk 0:00:49.8]} 37. Ne4+
{[%clk 0:00:35.9]} 37... Kb4 {[%clk 0:00:49.4]} 38. Nxf6 {[%clk 0:00:35.7]}
38... Kxa4 {[%clk 0:00:44.1]} 39. Nxh7 {[%clk 0:00:35.2]} 39... Kb3 {[%clk
0:00:44.8]} 40. Ng5 {[%clk 0:00:35]} 40... f6 {[%clk 0:00:42.6]} 41. Nh7 {[%clk
0:00:34.3]} 41... f5 {[%clk 0:00:39.3]} 42. h4 {[%clk 0:00:30.5]} 42... Kxb2
{[%clk 0:00:39.2]} 43. Kf4 {[%clk 0:00:23.1]} 43... Kc3 {[%clk 0:00:36.7]} 44.
h5 {[%clk 0:00:21]} 44... Kd4 {[%clk 0:00:25.2]} 45. h6 {[%clk 0:00:19.8]} 45...
Rh1 {[%clk 0:00:24.9]} 46. Kg5 {[%clk 0:00:18]} 46... Rh2 {[%clk 0:00:24.7]} 47.
f3 {[%clk 0:00:16.3]} 47... Rh3 {[%clk 0:00:24.1]} 48. g4 {[%clk 0:00:13.8]}
48... Rxf3 {[%clk 0:00:23.1]} 49. Nf6 {[%clk 0:00:10.6]} 49... fxg4 {[%clk
0:00:19.2]} 50. h7 {[%clk 0:00:06.7]} 50... Rh3 {[%clk 0:00:19.4]} 51. Nh5
{[%clk 0:00:06.5]} 51... g3 {[%clk 0:00:14.4]} 52. h8=Q+ {[%clk 0:00:06.1]}
52... Ke3 {[%clk 0:00:15]} 53. Qe5+ {[%clk 0:00:05.7]} 53... Kf2 {[%clk
0:00:15.4]} 54. Qf4+ {[%clk 0:00:04.9]} 54... Kg2 {[%clk 0:00:15.5]} 55. Qe4+
{[%clk 0:00:04.7]} 55... Kf2 {[%clk 0:00:15.5]} 56. Qd4+ {[%clk 0:00:03.9]}
56... Kg2 {[%clk 0:00:15.7]} 57. Nf4+ {[%clk 0:00:03.7]} 57... Kh2 {[%clk
0:00:15.3]} 58. Qd2+ {[%clk 0:00:02.2]} 58... Kg1 {[%clk 0:00:14.5]} 59. Nxh3+
{[%clk 0:00:02.1]} 59... Kh1 {[%clk 0:00:14.6]} 60. Kg4 {[%clk 0:00:01.4]} 60...
g2 {[%clk 0:00:14.5]} 0-1